bitfinex-derivatives/quotes_ETHF0:USTF0_20250430
["timestamp","ask_amount","ask_price","bid_price","bid_amount"]
[1746044287182,2.23,1806.7,1806.3,2.76793]
[1746044287491,2.2123,1806.6,1806.5,1.10705]
[1746044287688,6.2464,1807.0,1806.9,1.10681]
[1746044288992,6.3223,1807.0,1806.9,1.10681]
[1746044289789,6.3223,1807.0,1806.8,2.206]
[1746044289992,6.3223,1807.0,1806.9,1.10681]
[1746044290684,2.2123,1807.0,1806.9,1.10681]
[1746044290885,6.58943,1807.1,1807.0,1.10675]
[1746044291381,8.74143,1807.1,1807.0,1.10675]
[1746044291596,4.11,1807.2,1807.1,1.10669]
[1746044291885,8.42442,1807.2,1807.1,1.10669]
[1746044292091,4.11,1807.2,1807.1,1.10669]
[1746044292796,6.3185,1807.2,1807.1,1.10669]
[1746044293592,7.42512,1807.2,1807.1,1.10669]
[1746044293794,6.3185,1807.2,1807.1,1.10669]
[1746044295599,7.42512,1807.2,1807.1,1.10669]
[1746044295902,6.3185,1807.2,1807.1,1.10669]
[1746044296295,3.31512,1807.2,1807.1,1.10669]
[1746044297001,8.79635,1807.4,1807.3,1.10656]
[1746044297203,1.10635,1807.7,1807.6,1.10638]
[1746044297595,5.0992,1807.9,1807.3,4.31436]
[1746044297596,3.27701,1807.8,1807.7,1.10632]
[1746044297795,1.10636,1807.7,1807.6,1.10634]
[1746044298100,3.27706,1807.7,1807.6,1.10634]
[1746044298300,2.1707,1807.7,1807.6,1.10634]
[1746044299901,3.27702,1807.7,1807.6,1.10634]
[1746044300097,2.1707,1807.7,1807.6,1.10634]
[1746044300502,2.1707,1807.7,1807.6,41.90634]
[1746044301606,2.1707,1807.7,1807.6,44.08374]
[1746044301904,2.1707,1807.7,1807.6,41.90634]
[1746044303904,2.1707,1807.7,1807.6,44.08374]
[1746044304808,5.5414,1807.9,1807.6,42.9774]
[1746044305004,1.10626,1807.8,1807.7,3.27796]
[1746044305205,3.40866,1807.8,1807.7,3.27796]
[1746044305708,2.3024,1807.8,1807.5,3.2078]
[1746044306012,3.40872,1807.8,1807.7,1.10632]
[1746044306506,3.2078,1808.1,1808.0,1.10613]
[1746044307101,5.20191,1808.4,1808.3,1.10595]
[1746044307408,3.2078,1808.8,1808.3,3.2078]
[1746044307601,4.096,1809.1,1808.8,1.1056]
[1746044307602,3.2078,1809.0,1808.8,1.1056]
[1746044307802,1.10558,1808.9,1808.8,1.1056]
[1746044308101,3.28408,1808.9,1808.8,1.10565]
[1746044308302,2.1785,1808.9,1808.7,3.25446]
[1746044308507,3.28414,1808.9,1808.7,3.25446]
[1746044308709,3.28414,1808.9,1808.8,1.10565]
[1746044309509,2.1785,1808.9,1808.8,1.10565]
[1746044309707,3.28408,1808.9,1808.8,1.10565]
[1746044310112,2.1785,1808.9,1808.8,1.10565]
[1746044310311,3.28408,1808.9,1808.8,1.10565]
[1746044310711,2.1785,1808.9,1808.8,1.10565]
[1746044311413,3.28408,1808.9,1808.8,1.10565]
[1746044311611,2.1785,1808.9,1808.8,1.10565]
[1746044312308,1.10551,1809.1,1809.0,1.10552]
[1746044312515,1.10543,1809.2,1809.1,1.10544]
[1746044312710,1.10553,1809.0,1808.9,1.10556]
[1746044313514,5.5445,1809.0,1808.7,2.1086]
[1746044313814,3.44225,1809.0,1808.9,1.10558]
[1746044314010,2.3367,1809.0,1808.9,1.10558]
[1746044314313,1.10559,1808.9,1808.8,1.1056]
[1746044314515,2.3367,1809.0,1808.9,1.10558]
[1746044314808,3.44227,1809.0,1808.9,1.10558]
[1746044315616,3.44227,1809.0,1808.8,1.1056]
[1746044315809,2.3367,1809.0,1808.9,1.10558]
[1746044316209,2.129,1809.2,1809.1,1.10546]
[1746044316507,7.51752,1809.4,1809.0,8.08816]
[1746044316706,9.65672,1809.4,1809.3,1.10534]
[1746044317310,1.10535,1809.3,1809.2,1.10535]
[1746044317518,1.10546,1809.1,1809.0,6.4299]
[1746044317714,1.10546,1809.1,1809.0,3.2078]
[1746044318107,1.10546,1809.1,1809.0,4.31332]
[1746044318414,1.10546,1809.1,1809.0,3.2078]
[1746044318810,1.10546,1809.1,1809.0,1.10552]
[1746044319516,1.10554,1809.0,1808.9,1.10552]
[1746044320615,1.10565,1808.8,1808.7,45.11351]
[1746044320815,1.10565,1808.8,1808.7,44.0078]
[1746044321313,2.1338,1808.8,1808.7,45.11347]
[1746044321614,3.23945,1808.8,1808.7,45.11347]
[1746044321815,3.23945,1808.8,1808.7,47.27417]
[1746044322211,1.10583,1808.5,1808.4,1.10585]
[1746044322410,2.3096558,1808.5,1808.2,5.83]
[1746044322711,2.76488,1808.3,1808.0,40.8]
[1746044322922,1.10607,1808.1,1808.0,40.8]
[1746044323212,1.10607,1808.1,1808.0,41.90613]
[1746044323415,2.1653,1808.2,1808.0,40.8]
[1746044323814,5.19863,1808.9,1808.6,1.10577]
[1746044324010,4.4059,1808.7,1808.6,1.10577]
[1746044324916,4.4059,1808.7,1808.5,1.1058]
[1746044325110,4.4059,1808.7,1808.6,1.10577]
[1746044325914,4.093,1808.9,1808.4,5.4713]
[1746044325915,5.19861,1808.9,1808.7,1.10571]
[1746044326103,2.1907,1808.8,1808.7,1.10571]
[1746044326309,2.1907,1808.8,1808.4,5.4713]
[1746044326511,1.10572,1808.7,1808.5,1.10577]
[1746044326817,2.1907,1808.6,1808.5,1.10577]
[1746044327010,2.169,1809.0,1808.9,1.10558]
[1746044327210,2.1907,1809.0,1808.9,1.10558]
[1746044327420,2.2085,1809.3,1809.2,1.1054]
[1746044327716,2.2238,1809.4,1809.3,1.10213138]
[1746044329019,0.0331,1809.4,1809.3,3.24423138]
[1746044330718,0.0331,1809.4,1809.3,1.10213138]
[1746044330917,2.1774,1809.4,1809.2,3.2078]
[1746044331222,2.3179,1809.3,1809.2,1.10535]
[1746044331625,3.42327,1809.3,1809.2,1.1054]
[1746044331821,2.3179,1809.3,1809.2,1.1054]
[1746044332325,1.10552,1809.0,1808.9,1.10554]
[1746044332620,1.10566,1808.8,1808.7,1.10568]
[1746044332816,1.10578,1808.6,1808.5,1.10579]
[1746044333017,5.56126,1808.7,1808.6,1.10576]
[1746044333218,4.91558,1808.9,1808.4,3.2078]
[1746044333219,3.25721,1808.9,1808.4,5.97248]
[1746044333417,3.2078,1808.8,1808.5,2.2077]
[1746044333712,2.1516,1808.9,1808.6,1.10571]
[1746044333919,1.1058,1808.6,1808.5,1.10579]
[1746044334425,3.29515,1808.7,1808.6,1.10577]
[1746044334625,3.29515,1808.7,1808.4,4.31367]
[1746044334826,3.29515,1808.7,1808.4,6.52137]
[1746044335126,1.10568,1808.8,1808.5,1.10581]
[1746044335315,1.10571,1808.7,1808.4,6.52134]
[1746044335517,1.10571,1808.7,1808.4,5.4155]
[1746044335724,1.10577,1808.6,1808.4,6.52137]
[1746044336226,1.10576,1808.7,1808.4,6.52137]
[1746044336415,1.10582,1808.6,1808.4,5.4155]
[1746044336617,1.10583,1808.5,1808.4,5.4155]
[1746044337021,1.10579,1808.6,1808.4,6.52137]
[1746044337223,1.10574,1808.7,1808.4,5.4155]
[1746044337420,1.10579,1808.6,1808.4,6.52138]
[1746044337621,1.10579,1808.6,1808.4,5.4155]
[1746044337821,1.10579,1808.6,1808.4,6.52138]
[1746044338224,1.10575,1808.7,1808.4,6.52138]
[1746044338427,1.10579,1808.6,1808.4,6.52138]
[1746044338628,1.10579,1808.6,1808.4,5.4155]
[1746044338828,1.10583,1808.5,1808.4,3.2078]
[1746044339022,1.10595,1808.3,1808.2,3.2078]
[1746044339326,5.5297,1808.4,1808.0,40.8]
[1746044339525,1.10604,1808.2,1808.0,41.90613]
[1746044339723,1.10604,1808.2,1808.0,44.09053]
[1746044340036,1.10604,1808.2,1808.0,42.9844]
[1746044340223,1.10607,1808.1,1808.0,42.9844]
[1746044340531,1.10613,1808.0,1807.9,3.2078]
[1746044341022,1.10632,1807.7,1807.6,3.2078]
[1746044341621,3.43272,1807.7,1807.6,3.2078]
[1746044342931,1.10638,1807.6,1807.5,2.1701]
[1746044343223,4.08,1807.8,1807.6,1.10634]
[1746044343428,1.10634,1807.7,1807.6,1.10638]
[1746044343627,1.10634,1807.7,1807.5,6.4843]
[1746044343828,1.10634,1807.7,1807.5,5.3779]
[1746044344130,5.18616,1808.0,1807.7,1.10627]
[1746044344433,1.1062,1807.9,1807.8,2.1209]
[1746044344630,1.1062,1807.9,1807.8,3.22716]
[1746044344832,4.08,1808.0,1807.9,1.1062]
[1746044345132,5.18613,1808.0,1807.9,2.1209]
[1746044346525,1.10613,1808.0,1807.9,2.1209]
[1746044346725,1.10623,1807.9,1807.7,3.2078]
[1746044347030,1.10623,1807.9,1807.7,6.43499]
[1746044347328,1.10623,1807.9,1807.8,40.8]
[1746044347536,2.7652,1808.1,1807.5,3.2078]
[1746044347537,1.10641,1807.6,1807.5,3.2078]
[1746044347928,1.10641,1807.6,1807.5,44.0078]
[1746044348128,1.10636,1807.7,1807.5,1.1064]
[1746044348329,1.10649,1807.5,1807.3,4.31432]
[1746044348532,1.1065,1807.4,1807.3,46.173]
[1746044349033,1.10649,1807.5,1807.3,46.173]
[1746044349227,1.10649,1807.5,1807.4,1.1065]
[1746044349424,2.76611,1807.5,1806.9,3.2078]
[1746044349628,1.10669,1807.1,1807.0,2.1652]
[1746044349834,1.10669,1807.1,1807.0,44.07195]
[1746044350032,1.10667,1807.2,1807.1,1.10668]
[1746044350834,1.10661,1807.3,1807.1,1.10669]
[1746044351031,1.10662,1807.2,1807.1,1.10669]
[1746044351435,1.10669,1807.1,1807.0,42.9652]
[1746044351728,1.10675,1807.0,1806.9,3.2078]
[1746044351931,1.10674,1807.1,1807.0,1.10675]
[1746044352234,1.10674,1807.1,1807.0,3.27335]
[1746044352431,2.1866,1807.2,1807.0,3.27335]
[1746044352733,1.10669,1807.1,1807.0,3.2733]
[1746044353036,2.76691,1807.0,1806.6,9.05097]
[1746044353234,1.10693,1806.7,1806.6,3.41777]
[1746044353730,1.10693,1806.7,1806.6,2.3108]
[1746044353939,1.10705,1806.6,1806.4,4.31487]
[1746044354132,3.39155,1806.6,1806.4,6.62567]
[1746044354528,1.10705,1806.5,1806.4,6.62567]
[1746044354724,3.39155,1806.5,1806.4,3.2078]
[1746044354931,2.2845,1806.5,1806.2,1.10719]
[1746044355131,2.2845,1806.5,1806.2,3.2078]
[1746044355325,3.39156,1806.5,1806.4,1.10711]
[1746044355531,5.18903,1806.6,1806.5,1.10705]
[1746044355731,5.18903,1806.6,1806.5,2.3108]
[1746044355936,5.18903,1806.6,1806.5,3.41785]
[1746044356135,1.10705,1806.5,1806.4,3.2078]
[1746044356334,1.10711,1806.4,1806.3,43.091]
[1746044356530,1.10718,1806.3,1806.2,4.31501]
[1746044356730,3.29738,1806.3,1806.2,3.2078]
[1746044356934,2.1902,1806.3,1806.2,3.2078]
[1746044357132,2.1902,1806.3,1806.2,45.11504]
[1746044357539,3.29738,1806.3,1806.2,41.90724]
[1746044357738,3.29738,1806.3,1806.2,1.10724]
[1746044358236,2.1902,1806.3,1806.1,3.39826]
[1746044358442,1.10724,1806.2,1806.1,3.39826]
[1746044358741,3.29742,1806.3,1806.2,1.10724]
[1746044359438,2.1902,1806.3,1806.2,1.10724]
[1746044359639,3.29738,1806.3,1806.2,1.10724]
[1746044360741,2.1902,1806.3,1806.2,1.10724]
[1746044360944,3.29738,1806.3,1806.2,1.10724]
[1746044361146,2.1902,1806.3,1806.2,1.10724]
[1746044361944,1.10714,1806.4,1806.3,1.10714]
[1746044362142,3.29764,1806.4,1806.3,1.10714]
[1746044364338,2.1905,1806.4,1806.1,2.291]
[1746044364544,1.10721,1806.3,1806.2,1.1072]
[1746044364840,2.1905,1806.4,1806.0,3.2078]
[1746044365040,2.3384,1806.2,1806.1,1.1073]
[1746044365233,3.44564,1806.2,1806.1,1.1073]
[1746044366848,2.3384,1806.2,1806.1,1.1073]
[1746044367039,3.44564,1806.2,1806.1,1.1073]
[1746044367235,1.10722,1806.3,1806.2,1.1072]
[1746044368945,2.346,1806.4,1806.3,1.10718]
[1746044369344,1.10718,1806.3,1806.2,3.3124]
[1746044369647,3.45314,1806.4,1806.3,1.10718]
[1746044369942,2.346,1806.4,1806.3,1.10718]
[1746044370141,2.346,1806.4,1806.3,4.31498]
[1746044370341,1.10718,1806.3,1806.2,3.31239]
[1746044371752,3.45317,1806.4,1806.3,1.10718]
[1746044374049,2.346,1806.4,1806.1,3.2078]
[1746044374252,1.10758,1805.7,1805.6,1.10757]
[1746044374552,2.76825,1806.1,1805.6,2.2855]
[1746044374553,2.76856,1805.9,1805.6,2.2855]
[1746044374750,1.1075,1805.8,1805.7,1.10751]
[1746044375349,1.10747,1805.9,1805.8,1.10747]
[1746044375653,3.26777,1805.9,1805.8,1.10747]
[1746044376247,1.10754,1805.7,1805.6,3.39309]
[1746044377155,3.2078,1805.8,1805.5,5.83]
[1746044377156,1.10766,1805.6,1805.5,1.10763]
[1746044377659,2.1603,1805.7,1805.4,2.1824]
[1746044377858,3.26788,1805.7,1805.6,1.1076]
[1746044378152,2.1603,1805.7,1805.2,2.76962]
[1746044378454,1.10764,1805.6,1805.5,1.10765]
[1746044378957,1.10767,1805.5,1805.4,1.10768]
[1746044379158,3.37447,1805.5,1805.4,1.10768]
[1746044379356,2.2668,1805.5,1805.4,1.10768]
[1746044379652,2.2668,1805.5,1805.3,3.33034]
[1746044379859,1.10773,1805.4,1805.3,2.2226]
[1746044380353,4.31553,1805.4,1805.3,1.10779]
[1746044380859,3.37451,1805.5,1805.4,1.10773]
[1746044381360,2.2668,1805.5,1805.4,1.10773]
[1746044381659,1.10776,1805.4,1805.3,1.10776]
[1746044382156,3.37451,1805.5,1805.4,1.10773]
[1746044382358,1.10788,1805.2,1805.1,1.10788]
[1746044382565,3.2078,1805.3,1804.9,5.83]
[1746044382755,3.33701,1805.2,1805.1,1.10791]
[1746044383760,2.2291,1805.2,1805.1,1.10791]
[1746044385463,3.33695,1805.2,1805.1,1.10791]
[1746044385965,2.2291,1805.2,1805.1,1.10791]
[1746044386163,3.33695,1805.2,1805.1,1.10791]
[1746044386565,2.2291,1805.2,1805.1,1.10791]
[1746044386758,3.33695,1805.2,1805.1,1.10791]
[1746044386957,2.2291,1805.2,1805.1,1.10791]
[1746044387255,5.3901,1805.3,1805.1,1.10791]
[1746044387457,6.49789,1805.3,1805.2,2.2881]
[1746044387657,6.49789,1805.3,1805.2,3.39595]
[1746044388267,1.1077,1805.5,1805.4,1.10768]
[1746044390064,1.10779,1805.4,1805.3,1.10777]
[1746044390263,1.10777,1805.4,1805.3,1.10775]
[1746044390665,3.26187,1805.4,1805.3,1.10775]
[1746044391766,1.10777,1805.4,1805.3,1.10775]
[1746044391967,1.1077,1805.5,1805.4,1.10767]
[1746044392271,3.2618,1805.5,1805.4,1.10767]
[1746044392585,5.5019,1805.6,1805.5,1.10767]
[1746044392763,7.25465,1805.7,1805.6,1.1076]
[1746044393268,1.10763,1805.6,1805.5,1.10761]
[1746044393470,1.10763,1805.6,1805.5,3.29761]
[1746044394867,8.2155,1805.7,1805.6,1.1076]
[1746044394868,9.32309,1805.7,1805.6,1.1076]
[1746044395069,5.18054,1805.7,1805.6,1.1076]
[1746044396872,1.1076,1805.6,1805.5,3.29762]
[1746044397069,3.2014,1805.6,1805.5,3.29762]
[1746044397277,1.10767,1805.5,1805.4,1.1077]
[1746044397470,3.20147,1805.6,1805.5,1.10767]
[1746044399372,3.20147,1805.6,1805.4,3.38318]
[1746044399373,1.10767,1805.5,1805.4,3.38318]
[1746044399568,1.10785,1805.2,1805.1,3.28984]
[1746044399769,1.10783,1805.3,1805.1,4.95177]
[1746044399970,1.10783,1805.3,1805.2,1.1078]
[1746044400774,3.34363,1805.3,1805.2,1.1078]
[1746044401083,6.44956,1805.4,1805.3,1.10779]
[1746044401277,1.10771,1805.5,1805.4,1.10773]
[1746044401583,3.34351,1805.5,1805.4,1.10773]
[1746044402275,1.10771,1805.5,1805.4,1.10773]
[1746044402877,3.2078,1805.6,1805.5,1.10767]
[1746044403078,4.063,1806.5,1805.6,2.76902]
[1746044403280,1.10721,1806.3,1806.2,1.10721]
[1746044403575,1.10733,1806.1,1806.0,1.10734]
[1746044403878,1.10733,1806.1,1806.0,3.36944]
[1746044404073,5.56464,1806.4,1806.3,1.10718]
[1746044404273,4.4575,1806.4,1806.0,5.4699]
[1746044404480,1.10724,1806.2,1806.1,1.10726]
[1746044404782,1.10736,1806.0,1805.9,41.90742]
[1746044404979,6.41304,1806.1,1806.0,1.10735]
[1746044405186,3.20524,1806.1,1806.0,1.10735]
[1746044405384,7.6653,1806.4,1805.9,43.56856]
[1746044405683,1.1072,1806.3,1806.2,1.10721]
[1746044406784,3.2078,1806.4,1806.3,1.10718]
[1746044406984,1.10711,1806.4,1806.3,1.10718]
[1746044408184,1.10718,1806.3,1806.2,3.28899]
[1746044408384,1.10717,1806.4,1806.3,1.10717]
[1746044410684,6.2374,1806.5,1806.4,1.10711]
[1746044410891,6.2374,1806.5,1806.3,1.10713]
[1746044411094,7.3445,1806.5,1806.4,1.10711]
[1746044411493,4.063,1806.5,1806.4,1.10711]
[1746044411691,5.17005,1806.5,1806.4,1.10711]
[1746044411894,4.063,1806.5,1806.4,1.10711]
[1746044412695,6.5792,1806.7,1806.3,2.76786]
[1746044412894,5.55043,1806.7,1806.6,1.10699]
[1746044413090,4.4435,1806.7,1806.6,1.10699]
[1746044413283,6.8287,1807.2,1806.6,2.76749]
[1746044413497,1.10683,1806.9,1806.8,1.10681]
[1746044413994,8.04093,1807.1,1806.6,2.76749]
[1746044413995,3.24249,1807.0,1806.9,1.10681]
[1746044414193,1.10689,1806.8,1806.7,1.10688]
[1746044414397,1.10698,1806.7,1806.6,1.10697]
[1746044414693,3.24098,1806.7,1806.6,1.10697]
[1746044416506,1.10703,1806.6,1806.5,1.10703]
[1746044416710,6.44877,1806.7,1806.6,1.10699]
[1746044417300,3.2078,1806.7,1806.6,1.10699]
[1746044417501,3.24204,1806.9,1806.8,1.10687]
[1746044417700,1.10689,1806.8,1806.7,1.10689]
[1746044419106,3.24201,1806.9,1806.8,1.10687]
[1746044420507,3.24202,1806.9,1806.8,1.10687]
[1746044421007,1.10682,1806.9,1806.8,1.10687]
[1746044421905,6.5827,1807.0,1806.9,1.10681]
[1746044422212,8.7048,1807.0,1806.9,1.10681]
[1746044422607,3.17313,1807.1,1807.0,1.10675]
[1746044422913,1.10678,1807.0,1806.9,1.10677]
[1746044423610,5.29524,1807.1,1807.0,1.10675]
[1746044425410,6.95528,1807.1,1806.7,5.4298]
[1746044425616,1.10681,1806.9,1806.8,1.10685]
[1746044426111,3.21051,1806.9,1806.8,1.10685]
[1746044428515,1.10691,1806.8,1806.7,1.10689]
[1746044428718,1.10699,1806.6,1806.5,6.93704]
[1746044431716,1.10699,1806.6,1806.5,1.10704]
[1746044431916,3.19099,1806.6,1806.5,1.10704]
[1746044434911,5.53528,1806.5,1806.1,0.00442439]
[1746044435215,1.10724,1806.2,1806.1,0.00442439]
[1746044435518,4.31504,1806.2,1806.1,0.00442439]
[1746044435918,6.43604,1806.2,1806.1,0.00442439]
[1746044438025,11.43604,1806.2,1806.1,0.00442439]
[1746044438526,1.1076,1805.7,1805.5,8.5329]
[1746044438723,1.1076,1805.7,1805.6,1.10756]
[1746044438921,1.1076,1805.6,1805.5,1.10759]
[1746044439121,1.10767,1805.5,1805.4,3.2078]
[1746044439322,1.10779,1805.4,1805.3,1.10778]
[1746044439517,1.10769,1805.5,1805.4,1.10769]
[1746044439821,1.10762,1805.6,1805.5,1.10767]
[1746044440425,7.2558,1805.7,1805.6,1.1076]
[1746044440619,4.048,1805.7,1805.6,1.1076]
[1746044441425,6.42787,1805.9,1805.8,1.10748]
[1746044441631,6.42787,1805.9,1805.7,1.1075]
[1746044441826,3.2078,1805.9,1805.8,1.10748]
[1746044442026,1.10748,1805.8,1805.7,1.1075]
[1746044442230,1.10748,1805.8,1805.6,3.41096]
[1746044442425,1.10754,1805.7,1805.6,3.41096]
[1746044442630,1.1076,1805.6,1805.5,3.2078]
[1746044442823,1.10758,1805.7,1805.6,1.1076]
[1746044443331,1.1076,1805.6,1805.5,3.41101]
[1746044443533,1.10759,1805.7,1805.6,1.1076]
[1746044443920,1.1076,1805.6,1805.5,2.3034]
[1746044444124,1.1076,1805.6,1805.5,6.1314]
[1746044444331,1.1076,1805.6,1805.5,7.23907]
[1746044444529,1.1076,1805.6,1805.5,6.1314]
[1746044444730,1.1076,1805.6,1805.5,7.23907]
[1746044445332,1.1076,1805.6,1805.5,3.41107]
[1746044445532,1.1076,1805.6,1805.5,2.3034]
[1746044445730,1.10773,1805.4,1805.3,3.2078]
[1746044447128,3.23403,1805.4,1805.3,3.2078]
[1746044448735,3.23403,1805.4,1805.3,4.31559]
[1746044448932,2.1263,1805.4,1805.3,4.31559]
[1746044449127,4.049,1805.6,1805.5,1.10767]
[1746044449331,6.62369,1805.7,1805.6,1.1076]
[1746044450432,1.10763,1805.6,1805.5,1.10762]
[1746044451133,6.62367,1805.7,1805.6,1.1076]
[1746044451432,1.10762,1805.6,1805.5,1.10762]
[1746044453731,6.6237,1805.7,1805.6,1.1076]
[1746044453937,6.62364,1805.7,1805.6,1.1076]
[1746044454437,1.10762,1805.6,1805.5,1.10761]
[1746044454834,1.10767,1805.5,1805.4,3.34158]
[1746044455235,1.10767,1805.5,1805.4,7.16958]
[1746044455533,1.10767,1805.5,1805.4,4.93573]
[1746044456028,1.10767,1805.5,1805.4,4.93568]
[1746044456233,1.10767,1805.5,1805.4,1.10768]
[1746044457440,2.075,1805.6,1805.3,3.2078]
[1746044457738,1.10773,1805.4,1805.3,4.31559]
[1746044458128,1.10773,1805.4,1805.3,3.2078]
[1746044458331,3.31633,1805.4,1805.3,3.2078]
[1746044458944,3.31633,1805.4,1805.3,4.31559]
[1746044459739,3.30881,1805.5,1805.3,3.2078]
[1746044459931,3.30881,1805.5,1805.4,1.10773]
[1746044460135,7.35126,1805.6,1805.5,1.10767]
[1746044460336,3.2078,1805.7,1805.6,1.1076]
[1746044460538,4.3723,1806.1,1805.9,1.10739]
[1746044461043,4.3723,1806.1,1806.0,1.10736]
[1746044461437,2.2105,1806.3,1806.2,1.10724]
[1746044461639,2.186,1806.4,1806.3,1.10718]
[1746044461833,8.4318,1806.6,1806.4,1.10711]
[1746044462036,8.4318,1806.6,1806.5,1.10705]
[1746044462232,4.035,1806.6,1806.5,1.10705]
[1746044462438,3.2078,1806.7,1806.6,1.10699]
[1746044462943,4.31475,1806.7,1806.5,1.107]
[1746044463135,5.3955,1806.7,1806.6,1.10699]
[1746044463336,5.3955,1806.7,1806.4,2.0781]
[1746044463536,5.3955,1806.7,1806.5,1.10705]
[1746044463738,5.3955,1806.7,1806.6,1.10699]
[1746044464047,5.3955,1806.7,1806.5,1.107]
[1746044464235,6.50246,1806.7,1806.5,1.107]
[1746044464742,6.50246,1806.7,1806.6,1.10699]
[1746044465048,5.3955,1806.7,1806.6,1.10699]
[1746044465736,6.50243,1806.7,1806.6,1.10699]
[1746044467147,10.3955,1806.7,1806.4,2.0781]
[1746044467346,2.2056,1806.6,1806.5,1.10699]
[1746044467644,4.4708,1806.6,1806.5,1.10699]
[1746044468642,4.31473,1806.7,1806.6,1.10699]
[1746044468848,5.473,1806.7,1806.6,1.10699]
[1746044469144,6.57993,1806.7,1806.6,1.10699]
[1746044470351,5.473,1806.7,1806.6,1.10699]
[1746044470845,6.51597,1806.8,1806.7,1.10693]
[1746044471050,8.76767,1806.8,1806.7,1.10693]
[1746044472846,1.10709,1806.5,1806.4,1.10703]
[1746044473148,1.10709,1806.5,1806.4,1.10705]
[1746044473543,5.51369,1806.5,1806.4,1.10705]
[1746044474046,4.4066,1806.5,1806.4,1.10705]
[1746044475051,3.2078,1806.6,1806.5,1.10705]
[1746044475252,8.80881,1806.8,1806.7,1.10693]
[1746044475453,7.7019,1806.8,1806.7,1.10693]
[1746044475752,6.51597,1806.8,1806.7,1.10693]
[1746044476249,8.80877,1806.8,1806.7,1.10693]
[1746044476454,3.2078,1806.8,1806.7,1.10693]
[1746044476645,2.2928,1807.0,1806.9,1.10681]
[1746044478942,6.40549,1807.1,1807.0,1.10675]
[1746044479145,8.61409,1807.1,1807.0,1.10675]
[1746044481157,7.5074,1807.1,1806.8,2.171]
[1746044481349,1.10679,1807.0,1806.9,1.10678]
[1746044481654,3.19309,1807.0,1806.9,1.10678]
[1746044482354,2.0863,1807.0,1806.9,1.10678]
[1746044482545,3.19305,1807.0,1806.9,1.10678]
[1746044482740,1.10684,1806.9,1806.8,1.10681]
[1746044482945,3.19314,1806.9,1806.8,1.10681]
[1746044483147,6.40094,1806.9,1806.8,1.10681]
[1746044483750,2.76718,1806.8,1806.4,4.89914]
[1746044483955,10.19367,1806.7,1806.1,3.2078]
[1746044484153,1.10708,1806.5,1806.4,1.10708]
[1746044484361,1.10705,1806.5,1806.4,1.10708]
[1746044484657,3.26725,1806.5,1806.4,1.10708]
[1746044485157,2.1602,1806.5,1806.4,1.10708]
[1746044485658,3.26725,1806.5,1806.4,1.10708]
[1746044485858,1.10716,1806.4,1806.3,1.10714]
[1746044486058,2.1602,1806.5,1806.4,1.10711]
[1746044486855,1.10718,1806.3,1806.2,3.23456]
[1746044487258,1.10716,1806.4,1806.3,1.10714]
[1746044487455,3.24856,1806.4,1806.3,1.10714]
[1746044487758,1.10718,1806.3,1806.2,1.10719]
[1746044487960,5.46198,1806.3,1806.2,1.10719]
[1746044488457,4.3548,1806.3,1806.2,3.20499]
[1746044488759,5.46198,1806.3,1806.2,3.20499]
[1746044489859,1.10725,1806.2,1806.1,1.1073]
[1746044490058,3.24865,1806.2,1806.1,1.1073]
[1746044491949,5.35275,1806.2,1806.1,1.1073]
[1746044493059,4.2455,1806.2,1806.1,1.1073]
[1746044493556,5.35274,1806.2,1806.1,1.1073]
[1746044493751,4.2455,1806.2,1806.1,1.1073]
[1746044494152,6.52843,1806.3,1806.2,1.10724]
[1746044494357,1.10725,1806.2,1806.1,1.10725]
[1746044494957,3.20705,1806.2,1806.1,1.10725]
[1746044495761,5.4212,1806.3,1806.2,1.10724]
[1746044495960,3.2078,1806.3,1806.2,1.10724]
[1746044496557,7.30359,1806.5,1806.1,8.08201]
[1746044496755,7.30359,1806.5,1806.4,1.10711]
[1746044496958,1.10715,1806.4,1806.3,1.10712]
[1746044497358,9.42569,1806.5,1806.4,1.10711]
[1746044500856,1.10718,1806.4,1806.3,1.10712]
[1746044502060,1.10724,1806.3,1806.2,1.10719]
[1746044502458,3.31984,1806.3,1806.2,1.10719]
[1746044503167,1.1073,1806.2,1806.1,1.10726]
[1746044503367,3.3454,1806.2,1806.1,1.10726]
[1746044505059,1.10723,1806.3,1806.2,1.10724]
[1746044505665,2.7681,1806.2,1805.9,6.39964741]
[1746044505970,3.41213,1806.1,1806.0,1.1073]
[1746044506265,2.76841,1806.0,1805.5,3.2078]
[1746044506470,1.10765,1805.6,1805.5,1.10764]
[1746044507273,1.10764,1805.6,1805.5,1.10764]
[1746044507771,1.10767,1805.5,1805.4,40.8]
[1746044508065,1.10767,1805.5,1805.4,1.10773]
[1746044508270,7.72685,1805.6,1805.5,1.10767]
[1746044508474,1.1077,1805.5,1805.4,1.1077]
[1746044508673,3.3549,1805.5,1805.4,1.1077]
[1746044508880,2.2472,1805.5,1805.4,1.1077]
[1746044509377,3.35487,1805.5,1805.4,1.1077]
[1746044509577,2.2472,1805.5,1805.4,1.1077]
[1746044510076,3.35487,1805.5,1805.4,1.1077]
[1746044510275,2.2472,1805.5,1805.4,1.1077]
[1746044510572,4.3144,1805.6,1805.5,1.10767]
[1746044510768,3.2078,1805.7,1805.3,52.72785619]
[1746044510769,3.2078,1805.7,1805.6,1.1076]